Workbook

Sheet 4°
A2: K O N I N K L I J K E B E L G I S C H E B I L J A R T B O N D | M2: - | N2: F E D E R A T I O N R O Y A L E B E L G E DE B I L L A R D
E3: VZW - Zetel - " Café Sport " - Martelarenplein, 13 - 3000 Leuven
D4: GEWEST BEIDE VLAANDEREN
K5: 2017 - 2018
A6: UITSLAG GEWESTFINALE : 4° KLASSE DRIEBANDEN MB
B8: Inrichting : | D8: KON. SINT-NIKLASE BA | R8: MIN | S8: MAX
B9: datum : | D9: zaterdag, 21 april 2018 | O9: 18 | R9: 0.335 | S9: 0.405
B11: NATID | C11: NAAM | L11: CLUB | N11: WEDP | O11: BP | P11: Beurten | Q11: GEM 2,30 | R11: HR | S11: OPM | U11: Pl | Y11: rooster4 | Z11: rooster 5 | AA11: rooster 6 | AB11: rooster7
B13: 7316 | C13: =VLOOKUP(B13,LEDEN!A:B,2,FALSE) -> RONDELE Freddy | L13: =VLOOKUP(B13,LEDEN!A:C,3,FALSE) -> WOH
B14: 6399 | C14: =VLOOKUP(B14,LEDEN!A:B,2,FALSE) -> DELAERE Marc | N14: 2 | O14: 18 | P14: 39 | Q14: =IF(P14=0," ",TRUNC(O14/P14,3)) -> 0.461 | R14: 3 | S14: =IF(O14=0,"",IF(Q14>=X14,"PR",IF(Q14<W14,"OG","MG"))) -> PR | W14: 0.335 | X14: 0.404 | Y14: a1 | Z14: a1 | AA14: a1 | AB14: a1
B15: 4922 | C15: =VLOOKUP(B15,LEDEN!A:B,2,FALSE) -> LAUREYS Wilfried | N15: 2 | O15: 18 | P15: 50 | Q15: =IF(P15=0," ",TRUNC(O15/P15,3)) -> 0.36 | R15: 3 | S15: =IF(O15=0,"",IF(Q15>=X15,"PR",IF(Q15<W15,"OG","MG"))) -> MG | W15: 0.335 | X15: 0.404 | Y15: a2 | Z15: a2 | AA15: a6 | AB15: a4
B16: 1046 | C16: =VLOOKUP(B16,LEDEN!A:B,2,FALSE) -> BRUGGEMAN Franky | N16: 2 | O16: 18 | P16: 27 | Q16: =IF(P16=0," ",TRUNC(O16/P16,3)) -> 0.666 | R16: 3 | S16: PR | W16: 0.335 | X16: 0.404 | Z16: a5 | AA16: a3 | AB16: a7
C17: =VLOOKUP(B17,LEDEN!A:B,2,FALSE) ->  | Q17: =IF(P17=0," ",TRUNC(O17/P17,2)) ->  | W17: 0.335 | X17: 0.404 | Z17: a3 | AA17: a4 | AB17: a5
B18: EINDRESULTAAT | N18: =SUM(N14:N17) -> 6 | O18: =SUM(O14:O17) -> 54 | P18: =SUM(P14:P17) -> 116 | Q18: =IF(P18=0," ",TRUNC(O18/P18,3)) -> 0.465 | R18: 3 | S18: =IF(O18=0,"",IF(Q18>=X18,"PR",IF(Q18<W18,"OG","MG"))) -> PR | U18: 1 | W18: 0.335 | X18: 0.404 | Z18: a4 | AA18: a5 | AB18: a6
B20: 1046 | C20: =VLOOKUP(B20,LEDEN!A:B,2,FALSE) -> BRUGGEMAN Franky | L20: =VLOOKUP(B20,LEDEN!A:C,3,FALSE) -> K.EBC | Y20: a2 | Z20: a2 | AA20: a2 | AB20: a2
B21: 4922 | C21: =VLOOKUP(B21,LEDEN!A:B,2,FALSE) -> LAUREYS Wilfried | N21: 2 | O21: 18 | P21: 41 | Q21: =IF(P21=0," ",TRUNC(O21/P21,3)) -> 0.439 | R21: 3 | S21: =IF(O21=0,"",IF(Q21>=X21,"PR",IF(Q21<W21,"OG","MG"))) -> PR | W21: 0.335 | X21: 0.404 | Y21: a1 | Z21: a1 | AA21: a6 | AB21: a5
B22: 6399 | C22: =VLOOKUP(B22,LEDEN!A:B,2,FALSE) -> DELAERE Marc | N22: 2 | O22: 18 | P22: 42 | Q22: =IF(P22=0," ",TRUNC(O22/P22,3)) -> 0.428 | R22: 3 | S22: =IF(O22=0,"",IF(Q22>=X22,"PR",IF(Q22<W22,"OG","MG"))) -> PR | W22: 0.335 | X22: 0.404 | Z22: a4 | AA22: a4 | AB22: a7
B23: 7316 | C23: =VLOOKUP(B23,LEDEN!A:B,2,FALSE) -> RONDELE Freddy | N23: 0 | O23: 5 | P23: 27 | Q23: =IF(P23=0," ",TRUNC(O23/P23,3)) -> 0.185 | R23: 2 | S23: OG | W23: 0.335 | X23: 0.404 | Z23: a5 | AA23: a5 | AB23: a4
C24: =VLOOKUP(B24,LEDEN!A:B,2,FALSE) ->  | Q24: =IF(P24=0," ",TRUNC(O24/P24,2)) ->  | W24: 0.335 | X24: 0.404 | Z24: a3 | AA24: a3 | AB24: a6
B25: EINDRESULTAAT | N25: =SUM(N21:N24) -> 4 | O25: =SUM(O21:O24) -> 41 | P25: =SUM(P21:P24) -> 110 | Q25: =IF(P25=0," ",TRUNC(O25/P25,3)) -> 0.372 | R25: =MAX(R21:R24) -> 3 | S25: =IF(O25=0,"",IF(Q25>=X25,"PR",IF(Q25<W25,"OG","MG"))) -> MG | U25: 2 | W25: 0.335 | X25: 0.404
B27: 4922 | C27: =VLOOKUP(B27,LEDEN!A:B,2,FALSE) -> LAUREYS Wilfried | L27: =VLOOKUP(B27,LEDEN!A:C,3,FALSE) -> KSNBA | Y27: a3 | Z27: a3 | AA27: a3 | AB27: a3
B28: 1046 | C28: =VLOOKUP(B28,LEDEN!A:B,2,FALSE) -> BRUGGEMAN Franky | N28: 0 | O28: 4 | P28: 41 | Q28: =IF(P28=0," ",TRUNC(O28/P28,3)) -> 0.097 | R28: 2 | S28: =IF(O28=0,"",IF(Q28>=X28,"PR",IF(Q28<W28,"OG","MG"))) -> OG | W28: 0.335 | X28: 0.404 | Y28: a4 | Z28: a4 | AA28: a5 | AB28: a4
B29: 7316 | C29: =VLOOKUP(B29,LEDEN!A:B,2,FALSE) -> RONDELE Freddy | N29: 0 | O29: 11 | P29: 50 | Q29: =IF(P29=0," ",TRUNC(O29/P29,3)) -> 0.22 | R29: 2 | S29: =IF(O29=0,"",IF(Q29>=X29,"PR",IF(Q29<W29,"OG","MG"))) -> OG | W29: 0.335 | X29: 0.404 | Z29: a5 | AA29: a1 | AB29: a6
B30: 6399 | C30: =VLOOKUP(B30,LEDEN!A:B,2,FALSE) -> DELAERE Marc | N30: 0 | O30: 10 | P30: 34 | Q30: =IF(P30=0," ",TRUNC(O30/P30,3)) -> 0.294 | R30: 2 | S30: OG | W30: 0.335 | X30: 0.404 | Z30: a1 | AA30: a6 | AB30: a7
C31: =VLOOKUP(B31,LEDEN!A:B,2,FALSE) ->  | Q31: =IF(P31=0," ",TRUNC(O31/P31,2)) ->  | W31: 0.335 | X31: 0.404 | Z31: a2 | AA31: a2 | AB31: a5
B32: EINDRESULTAAT | N32: =SUM(N28:N31) -> 0 | O32: =SUM(O28:O31) -> 25 | P32: =SUM(P28:P31) -> 125 | Q32: =IF(P32=0," ",TRUNC(O32/P32,3)) -> 0.2 | R32: =MAX(R28:R31) -> 2 | S32: =IF(O32=0,"",IF(Q32>=X32,"PR",IF(Q32<W32,"OG","MG"))) -> OG | U32: 4 | W32: 0.335 | X32: 0.404
B34: 6399 | C34: =VLOOKUP(B34,LEDEN!A:B,2,FALSE) -> DELAERE Marc | L34: =VLOOKUP(B34,LEDEN!A:C,3,FALSE) -> K.Br | Y34: a4 | Z34: a4 | AA34: a4 | AB34: a4
B35: 7316 | C35: =VLOOKUP(B35,LEDEN!A:B,2,FALSE) -> RONDELE Freddy | N35: 0 | O35: 17 | P35: 39 | Q35: =IF(P35=0," ",TRUNC(O35/P35,3)) -> 0.435 | R35: 2 | S35: =IF(O35=0,"",IF(Q35>=X35,"PR",IF(Q35<W35,"OG","MG"))) -> PR | W35: 0.335 | X35: 0.404 | Y35: a3 | Z35: a3 | AA35: a5 | AB35: a1
B36: 1046 | C36: =VLOOKUP(B36,LEDEN!A:B,2,FALSE) -> BRUGGEMAN Franky | N36: 0 | O36: 16 | P36: 42 | Q36: =IF(P36=0," ",TRUNC(O36/P36,3)) -> 0.38 | R36: 4 | S36: =IF(O36=0,"",IF(Q36>=X36,"PR",IF(Q36<W36,"OG","MG"))) -> MG | W36: 0.335 | X36: 0.404 | Z36: a2 | AA36: a2 | AB36: a3
B37: 4922 | C37: =VLOOKUP(B37,LEDEN!A:B,2,FALSE) -> LAUREYS Wilfried | N37: 2 | O37: 18 | P37: 34 | Q37: =IF(P37=0," ",TRUNC(O37/P37,3)) -> 0.529 | R37: 3 | S37: PR | W37: 0.335 | X37: 0.404 | Z37: a5 | AA37: a1 | AB37: a2
C38: =VLOOKUP(B38,LEDEN!A:B,2,FALSE) ->  | Q38: =IF(P38=0," ",TRUNC(O38/P38,2)) ->  | W38: 0.335 | X38: 0.404 | Z38: a1 | AA38: a6 | AB38: a6
B39: EINDRESULTAAT | N39: =SUM(N35:N38) -> 2 | O39: =SUM(O35:O38) -> 51 | P39: =SUM(P35:P38) -> 115 | Q39: =IF(P39=0," ",TRUNC(O39/P39,3)) -> 0.443 | R39: =MAX(R35:R38) -> 4 | S39: =IF(O39=0,"",IF(Q39>=X39,"PR",IF(Q39<W39,"OG","MG"))) -> PR | W39: 0.335 | X39: 0.404
C43: =TODAY() -> 2018-04-23 | P43: Albert Verbeken
P44: GSB Beide Vlaanderen

Sheet 4° zf
A2: K O N I N K L I J K E B E L G I S C H E B I L J A R T B O N D | M2: - | N2: F E D E R A T I O N R O Y A L E B E L G E DE B I L L A R D
E3: VZW - Zetel - " Café Sport " - Martelarenplein, 13 - 3000 Leuven
D4: GEWEST BEIDE VLAANDEREN
K5: 2017 - 2018
A6: UITSLAG GEWESTFINALE : 4° KLASSE DRIEBANDEN MB
B8: Inrichting : | D8: KON. SINT-NIKLASE BA | R8: MIN | S8: MAX
B9: datum : | D9: zaterdag, 21 april 2018 | O9: 18 | R9: 0.335 | S9: 0.405
B11: NATID | C11: NAAM | L11: CLUB | N11: WEDP | O11: BP | P11: Beurten | Q11: GEM 2,30 | R11: HR | S11: OPM | U11: Pl | Y11: rooster4 | Z11: rooster 5 | AA11: rooster 6 | AB11: rooster7
B13: 7316 | C13: =VLOOKUP(B13,LEDEN!A:B,2,FALSE) -> RONDELE Freddy | L13: =VLOOKUP(B13,LEDEN!A:C,3,FALSE) -> WOH
B14: 6399 | C14: =VLOOKUP(B14,LEDEN!A:B,2,FALSE) -> DELAERE Marc | Q14: =IF(P14=0," ",TRUNC(O14/P14,2)) ->  | S14: =IF(O14=0,"",IF(Q14>=X14,"PR",IF(Q14<W14,"OG","MG"))) ->  | W14: 0.335 | X14: 0.404 | Y14: a1 | Z14: a1 | AA14: a1 | AB14: a1
Q15: =IF(P15=0," ",TRUNC(O15/P15,2)) ->  | S15: =IF(O15=0,"",IF(Q15>=X15,"PR",IF(Q15<W15,"OG","MG"))) ->  | W15: 0.335 | X15: 0.404 | Y15: a2 | Z15: a2 | AA15: a6 | AB15: a4
W16: 0.335 | X16: 0.404 | Z16: a5 | AA16: a3 | AB16: a7
C17: =VLOOKUP(B17,LEDEN!A:B,2,FALSE) ->  | W17: 0.335 | X17: 0.404 | Z17: a3 | AA17: a4 | AB17: a5
B18: EINDRESULTAAT | W18: 0.335 | X18: 0.404 | Z18: a4 | AA18: a5 | AB18: a6
B20: 1046 | C20: =VLOOKUP(B20,LEDEN!A:B,2,FALSE) -> BRUGGEMAN Franky | L20: =VLOOKUP(B20,LEDEN!A:C,3,FALSE) -> K.EBC | Y20: a2 | Z20: a2 | AA20: a2 | AB20: a2
B21: 4922 | C21: =VLOOKUP(B21,LEDEN!A:B,2,FALSE) -> LAUREYS Wilfried | Q21: =IF(P21=0," ",TRUNC(O21/P21,2)) ->  | S21: =IF(O21=0,"",IF(Q21>=X21,"PR",IF(Q21<W21,"OG","MG"))) ->  | W21: 0.335 | X21: 0.404 | Y21: a1 | Z21: a1 | AA21: a6 | AB21: a5
Q22: =IF(P22=0," ",TRUNC(O22/P22,2)) ->  | S22: =IF(O22=0,"",IF(Q22>=X22,"PR",IF(Q22<W22,"OG","MG"))) ->  | W22: 0.335 | X22: 0.404 | Z22: a4 | AA22: a4 | AB22: a7
W23: 0.335 | X23: 0.404 | Z23: a5 | AA23: a5 | AB23: a4
C24: =VLOOKUP(B24,LEDEN!A:B,2,FALSE) ->  | W24: 0.335 | X24: 0.404 | Z24: a3 | AA24: a3 | AB24: a6
B25: EINDRESULTAAT | W25: 0.335 | X25: 0.404
B27: 4922 | C27: =VLOOKUP(B27,LEDEN!A:B,2,FALSE) -> LAUREYS Wilfried | L27: =VLOOKUP(B27,LEDEN!A:C,3,FALSE) -> KSNBA | Y27: a3 | Z27: a3 | AA27: a3 | AB27: a3
B28: 1046 | C28: =VLOOKUP(B28,LEDEN!A:B,2,FALSE) -> BRUGGEMAN Franky | Q28: =IF(P28=0," ",TRUNC(O28/P28,2)) ->  | S28: =IF(O28=0,"",IF(Q28>=X28,"PR",IF(Q28<W28,"OG","MG"))) ->  | W28: 0.335 | X28: 0.404 | Y28: a4 | Z28: a4 | AA28: a5 | AB28: a4
Q29: =IF(P29=0," ",TRUNC(O29/P29,2)) ->  | S29: =IF(O29=0,"",IF(Q29>=X29,"PR",IF(Q29<W29,"OG","MG"))) ->  | W29: 0.335 | X29: 0.404 | Z29: a5 | AA29: a1 | AB29: a6
W30: 0.335 | X30: 0.404 | Z30: a1 | AA30: a6 | AB30: a7
C31: =VLOOKUP(B31,LEDEN!A:B,2,FALSE) ->  | W31: 0.335 | X31: 0.404 | Z31: a2 | AA31: a2 | AB31: a5
B32: EINDRESULTAAT | W32: 0.335 | X32: 0.404
B34: 6399 | C34: =VLOOKUP(B34,LEDEN!A:B,2,FALSE) -> DELAERE Marc | L34: =VLOOKUP(B34,LEDEN!A:C,3,FALSE) -> K.Br | Y34: a4 | Z34: a4 | AA34: a4 | AB34: a4
B35: 7316 | C35: =VLOOKUP(B35,LEDEN!A:B,2,FALSE) -> RONDELE Freddy | Q35: =IF(P35=0," ",TRUNC(O35/P35,2)) ->  | S35: =IF(O35=0,"",IF(Q35>=X35,"PR",IF(Q35<W35,"OG","MG"))) ->  | W35: 0.335 | X35: 0.404 | Y35: a3 | Z35: a3 | AA35: a5 | AB35: a1
Q36: =IF(P36=0," ",TRUNC(O36/P36,2)) ->  | S36: =IF(O36=0,"",IF(Q36>=X36,"PR",IF(Q36<W36,"OG","MG"))) ->  | W36: 0.335 | X36: 0.404 | Z36: a2 | AA36: a2 | AB36: a3
W37: 0.335 | X37: 0.404 | Z37: a5 | AA37: a1 | AB37: a2
C38: =VLOOKUP(B38,LEDEN!A:B,2,FALSE) ->  | W38: 0.335 | X38: 0.404 | Z38: a1 | AA38: a6 | AB38: a6
B39: EINDRESULTAAT | W39: 0.335 | X39: 0.404
C43: =TODAY() -> 2018-04-23 | P43: Verantwoordelijke

Sheet LEDEN
A1: NATID | B1: NAAM | D1: S | E1: J | F1: K | G1: AANT/LED | H1: TOT.DIST | I1: 2016-08-20
A3: 4100 | B3: =VLOOKUP(A3,[2]Ledenlijst!$B$2:$N$707,2,FALSE) -> BOUSSY Werner | C3: =VLOOKUP(A3,[2]Ledenlijst!$B$2:$N$707,13,FALSE) -> K.Kn | D3: =VLOOKUP(A3,[2]Ledenlijst!$B$2:$N$707,7,FALSE) -> S
A4: 7678 | B4: =VLOOKUP(A4,[2]Ledenlijst!$B$2:$N$707,2,FALSE) -> DE VREEZE Patrick | C4: =VLOOKUP(A4,[2]Ledenlijst!$B$2:$N$707,13,FALSE) -> K.Kn | D4: =VLOOKUP(A4,[2]Ledenlijst!$B$2:$N$707,7,FALSE) -> S
A5: 5178 | B5: =VLOOKUP(A5,[2]Ledenlijst!$B$2:$N$707,2,FALSE) -> FRANKEN Luc | C5: =VLOOKUP(A5,[2]Ledenlijst!$B$2:$N$707,13,FALSE) -> K.Kn | D5: =VLOOKUP(A5,[2]Ledenlijst!$B$2:$N$707,7,FALSE) -> S
A6: 4522 | B6: =VLOOKUP(A6,[2]Ledenlijst!$B$2:$N$707,2,FALSE) -> METTEPENNINGEN Julien | C6: =VLOOKUP(A6,[2]Ledenlijst!$B$2:$N$707,13,FALSE) -> K.Kn | D6: =VLOOKUP(A6,[2]Ledenlijst!$B$2:$N$707,7,FALSE) -> S
A7: 4114 | B7: =VLOOKUP(A7,[2]Ledenlijst!$B$2:$N$707,2,FALSE) -> VAN KREIJ Jo | C7: =VLOOKUP(A7,[2]Ledenlijst!$B$2:$N$707,13,FALSE) -> K.Kn | D7: =VLOOKUP(A7,[2]Ledenlijst!$B$2:$N$707,7,FALSE) -> S | G7: =COUNTA(A3:A7) -> 5 | I7: K.Kn
A8: 1102 | B8: =VLOOKUP(A8,[2]Ledenlijst!$B$2:$N$707,2,FALSE) -> CALLIAUW Ludovicus | C8: =VLOOKUP(A8,[2]Ledenlijst!$B$2:$N$707,13,FALSE) -> OS | D8: =VLOOKUP(A8,[2]Ledenlijst!$B$2:$N$707,7,FALSE) -> S
A9: 00848 | B9: =VLOOKUP(A9,[2]Ledenlijst!$B$2:$N$707,2,FALSE) -> DEVRIENDT Bart | C9: =VLOOKUP(A9,[2]Ledenlijst!$B$2:$N$707,13,FALSE) -> OS | F9: =VLOOKUP(A9,[2]Ledenlijst!$B$2:$N$707,7,FALSE) -> K
A10: 4119 | B10: =VLOOKUP(A10,[2]Ledenlijst!$B$2:$N$707,2,FALSE) -> GEERLANDT José | C10: =VLOOKUP(A10,[2]Ledenlijst!$B$2:$N$707,13,FALSE) -> OS | D10: =VLOOKUP(A10,[2]Ledenlijst!$B$2:$N$707,7,FALSE) -> S
A11: 4122 | B11: =VLOOKUP(A11,[2]Ledenlijst!$B$2:$N$707,2,FALSE) -> HAEGHEBAERT Eric | C11: =VLOOKUP(A11,[2]Ledenlijst!$B$2:$N$707,13,FALSE) -> OS | D11: =VLOOKUP(A11,[2]Ledenlijst!$B$2:$N$707,7,FALSE) -> S
A12: 6074 | B12: =VLOOKUP(A12,[2]Ledenlijst!$B$2:$N$707,2,FALSE) -> MAES Hendrik | C12: =VLOOKUP(A12,[2]Ledenlijst!$B$2:$N$707,13,FALSE) -> OS | D12: =VLOOKUP(A12,[2]Ledenlijst!$B$2:$N$707,7,FALSE) -> S
A13: 7287 | B13: =VLOOKUP(A13,[2]Ledenlijst!$B$2:$N$707,2,FALSE) -> SOENENS Joël | C13: =VLOOKUP(A13,[2]Ledenlijst!$B$2:$N$707,13,FALSE) -> OS | D13: =VLOOKUP(A13,[2]Ledenlijst!$B$2:$N$707,7,FALSE) -> S
A14: 8883 | B14: =VLOOKUP(A14,[2]Ledenlijst!$B$2:$N$707,2,FALSE) -> VANPRAET Bart | C14: =VLOOKUP(A14,[2]Ledenlijst!$B$2:$N$707,13,FALSE) -> OS | D14: =VLOOKUP(A14,[2]Ledenlijst!$B$2:$N$707,7,FALSE) -> S
A15: 8668 | B15: =VLOOKUP(A15,[2]Ledenlijst!$B$2:$N$707,2,FALSE) -> VANDEKEERE Bert | C15: =VLOOKUP(A15,[2]Ledenlijst!$B$2:$N$707,13,FALSE) -> OS | D15: =VLOOKUP(A15,[2]Ledenlijst!$B$2:$N$707,7,FALSE) -> S
A16: 7010 | B16: =VLOOKUP(A16,[2]Ledenlijst!$B$2:$N$707,2,FALSE) -> VERMEULEN Johan | C16: =VLOOKUP(A16,[2]Ledenlijst!$B$2:$N$707,13,FALSE) -> OS | D16: =VLOOKUP(A16,[2]Ledenlijst!$B$2:$N$707,7,FALSE) -> S
A17: 4133 | B17: =VLOOKUP(A17,[2]Ledenlijst!$B$2:$N$707,2,FALSE) -> WERBROUCK Luc | C17: =VLOOKUP(A17,[2]Ledenlijst!$B$2:$N$707,13,FALSE) -> OS | D17: =VLOOKUP(A17,[2]Ledenlijst!$B$2:$N$707,7,FALSE) -> S | G17: =COUNTA(A8:A17) -> 10 | I17: OS
A18: 4158 | B18: =VLOOKUP(A18,[2]Ledenlijst!$B$2:$N$707,2,FALSE) -> BAUWENS Freddy | C18: =VLOOKUP(A18,[2]Ledenlijst!$B$2:$N$707,13,FALSE) -> K.ZE | D18: =VLOOKUP(A18,[2]Ledenlijst!$B$2:$N$707,7,FALSE) -> S
A19: 00949 | B19: =VLOOKUP(A19,[2]Ledenlijst!$B$2:$N$707,2,FALSE) -> BLOMME Johan | C19: =VLOOKUP(A19,[2]Ledenlijst!$B$2:$N$707,13,FALSE) -> K.ZE | F19: =VLOOKUP(A19,[2]Ledenlijst!$B$2:$N$707,7,FALSE) -> K
A20: 00850 | B20: =VLOOKUP(A20,[2]Ledenlijst!$B$2:$N$707,2,FALSE) -> BONNY Ingrid | C20: =VLOOKUP(A20,[2]Ledenlijst!$B$2:$N$707,13,FALSE) -> K.ZE | F20: =VLOOKUP(A20,[2]Ledenlijst!$B$2:$N$707,7,FALSE) -> K
A21: 00852 | B21: =VLOOKUP(A21,[2]Ledenlijst!$B$2:$N$707,2,FALSE) -> BULTINCK Ginette | C21: =VLOOKUP(A21,[2]Ledenlijst!$B$2:$N$707,13,FALSE) -> K.ZE | F21: =VLOOKUP(A21,[2]Ledenlijst!$B$2:$N$707,7,FALSE) -> K
A22: KK | B22: =VLOOKUP(A22,[2]Ledenlijst!$B$2:$N$707,2,FALSE) -> BUYSSE Edgard | C22: =VLOOKUP(A22,[2]Ledenlijst!$B$2:$N$707,13,FALSE) -> K.ZE | F22: =VLOOKUP(A22,[2]Ledenlijst!$B$2:$N$707,7,FALSE) -> K
A23: 4162 | B23: =VLOOKUP(A23,[2]Ledenlijst!$B$2:$N$707,2,FALSE) -> CAPPELLE Eddy | C23: =VLOOKUP(A23,[2]Ledenlijst!$B$2:$N$707,13,FALSE) -> K.ZE | D23: =VLOOKUP(A23,[2]Ledenlijst!$B$2:$N$707,7,FALSE) -> S
A24: 00853 | B24: =VLOOKUP(A24,[2]Ledenlijst!$B$2:$N$707,2,FALSE) -> CATTRYSSE Magali | C24: =VLOOKUP(A24,[2]Ledenlijst!$B$2:$N$707,13,FALSE) -> K.ZE | F24: =VLOOKUP(A24,[2]Ledenlijst!$B$2:$N$707,7,FALSE) -> K
A25: 4167 | B25: =VLOOKUP(A25,[2]Ledenlijst!$B$2:$N$707,2,FALSE) -> DECLERCK Gilbert | C25: =VLOOKUP(A25,[2]Ledenlijst!$B$2:$N$707,13,FALSE) -> K.ZE | D25: =VLOOKUP(A25,[2]Ledenlijst!$B$2:$N$707,7,FALSE) -> S
A26: 9254 | B26: =VLOOKUP(A26,[2]Ledenlijst!$B$2:$N$707,2,FALSE) -> DEPRINCE Luc | C26: =VLOOKUP(A26,[2]Ledenlijst!$B$2:$N$707,13,FALSE) -> K.ZE | D26: =VLOOKUP(A26,[2]Ledenlijst!$B$2:$N$707,7,FALSE) -> S
A27: 4171 | B27: =VLOOKUP(A27,[2]Ledenlijst!$B$2:$N$707,2,FALSE) -> FORREST Emiel | C27: =VLOOKUP(A27,[2]Ledenlijst!$B$2:$N$707,13,FALSE) -> K.ZE | D27: =VLOOKUP(A27,[2]Ledenlijst!$B$2:$N$707,7,FALSE) -> S
A28: 00854 | B28: =VLOOKUP(A28,[2]Ledenlijst!$B$2:$N$707,2,FALSE) -> LAMBERT Marie-Thérése | C28: =VLOOKUP(A28,[2]Ledenlijst!$B$2:$N$707,13,FALSE) -> K.ZE | F28: =VLOOKUP(A28,[2]Ledenlijst!$B$2:$N$707,7,FALSE) -> K
A29: 00855 | B29: =VLOOKUP(A29,[2]Ledenlijst!$B$2:$N$707,2,FALSE) -> MARTENS Linda | C29: =VLOOKUP(A29,[2]Ledenlijst!$B$2:$N$707,13,FALSE) -> K.ZE | F29: =VLOOKUP(A29,[2]Ledenlijst!$B$2:$N$707,7,FALSE) -> K
A30: 00856 | B30: =VLOOKUP(A30,[2]Ledenlijst!$B$2:$N$707,2,FALSE) -> SEDED Bold | C30: =VLOOKUP(A30,[2]Ledenlijst!$B$2:$N$707,13,FALSE) -> K.ZE | F30: =VLOOKUP(A30,[2]Ledenlijst!$B$2:$N$707,7,FALSE) -> K
A31: 00857 | B31: =VLOOKUP(A31,[2]Ledenlijst!$B$2:$N$707,2,FALSE) -> SERROELS Erwin | C31: =VLOOKUP(A31,[2]Ledenlijst!$B$2:$N$707,13,FALSE) -> K.ZE | F31: =VLOOKUP(A31,[2]Ledenlijst!$B$2:$N$707,7,FALSE) -> K
A32: 00858 | B32: =VLOOKUP(A32,[2]Ledenlijst!$B$2:$N$707,2,FALSE) -> STUBBE Patricia | C32: =VLOOKUP(A32,[2]Ledenlijst!$B$2:$N$707,13,FALSE) -> K.ZE | F32: =VLOOKUP(A32,[2]Ledenlijst!$B$2:$N$707,7,FALSE) -> K
A33: 00859 | B33: =VLOOKUP(A33,[2]Ledenlijst!$B$2:$N$707,2,FALSE) -> ULIN Nadine | C33: =VLOOKUP(A33,[2]Ledenlijst!$B$2:$N$707,13,FALSE) -> K.ZE | F33: =VLOOKUP(A33,[2]Ledenlijst!$B$2:$N$707,7,FALSE) -> K
A34: 00860 | B34: =VLOOKUP(A34,[2]Ledenlijst!$B$2:$N$707,2,FALSE) -> VANDEKERCKHOVE Danny | C34: =VLOOKUP(A34,[2]Ledenlijst!$B$2:$N$707,13,FALSE) -> K.ZE | F34: =VLOOKUP(A34,[2]Ledenlijst!$B$2:$N$707,7,FALSE) -> K
A35: 9961 | B35: =VLOOKUP(A35,[2]Ledenlijst!$B$2:$N$707,2,FALSE) -> VANDENBROELE Kurt | C35: =VLOOKUP(A35,[2]Ledenlijst!$B$2:$N$707,13,FALSE) -> K.ZE | D35: =VLOOKUP(A35,[2]Ledenlijst!$B$2:$N$707,7,FALSE) -> S
A36: 00861 | B36: =VLOOKUP(A36,[2]Ledenlijst!$B$2:$N$707,2,FALSE) -> VANDIERENDONCK Yannick | C36: =VLOOKUP(A36,[2]Ledenlijst!$B$2:$N$707,13,FALSE) -> K.ZE | F36: =VLOOKUP(A36,[2]Ledenlijst!$B$2:$N$707,7,FALSE) -> K | G36: =COUNTA(A18:A36) -> 19 | I36: K.ZE
A37: 7465 | B37: =VLOOKUP(A37,[2]Ledenlijst!$B$2:$N$707,2,FALSE) -> COUSSEMENT Wim | C37: =VLOOKUP(A37,[2]Ledenlijst!$B$2:$N$707,13,FALSE) -> DK | D37: =VLOOKUP(A37,[2]Ledenlijst!$B$2:$N$707,7,FALSE) -> S
A38: 4180 | B38: =VLOOKUP(A38,[2]Ledenlijst!$B$2:$N$707,2,FALSE) -> CONSTANT Geert | C38: =VLOOKUP(A38,[2]Ledenlijst!$B$2:$N$707,13,FALSE) -> DK | D38: =VLOOKUP(A38,[2]Ledenlijst!$B$2:$N$707,7,FALSE) -> S
A39: 5682 | B39: =VLOOKUP(A39,[2]Ledenlijst!$B$2:$N$707,2,FALSE) -> DELANGHE Lievin | C39: =VLOOKUP(A39,[2]Ledenlijst!$B$2:$N$707,13,FALSE) -> DK | D39: =VLOOKUP(A39,[2]Ledenlijst!$B$2:$N$707,7,FALSE) -> S
A40: 8047 | B40: =VLOOKUP(A40,[2]Ledenlijst!$B$2:$N$707,2,FALSE) -> DEVRIENDT Bart | C40: =VLOOKUP(A40,[2]Ledenlijst!$B$2:$N$707,13,FALSE) -> DK | F40: =VLOOKUP(A40,[2]Ledenlijst!$B$2:$N$707,7,FALSE) -> K | G40: =COUNTA(A37:A40) -> 4 | I40: DK
A41: KKBR | B41: =VLOOKUP(A41,[2]Ledenlijst!$B$2:$N$707,2,FALSE) -> ACX Dirk | C41: =VLOOKUP(A41,[2]Ledenlijst!$B$2:$N$707,13,FALSE) -> K.Br | F41: =VLOOKUP(A41,[2]Ledenlijst!$B$2:$N$707,7,FALSE) -> K
A42: 6690 | B42: =VLOOKUP(A42,[2]Ledenlijst!$B$2:$N$707,2,FALSE) -> BAUWENS Etienne | C42: =VLOOKUP(A42,[2]Ledenlijst!$B$2:$N$707,13,FALSE) -> K.Br | D42: =VLOOKUP(A42,[2]Ledenlijst!$B$2:$N$707,7,FALSE) -> S
A43: 7797 | B43: =VLOOKUP(A43,[2]Ledenlijst!$B$2:$N$707,2,FALSE) -> BEIRENS Marc | C43: =VLOOKUP(A43,[2]Ledenlijst!$B$2:$N$707,13,FALSE) -> K.Br | D43: =VLOOKUP(A43,[2]Ledenlijst!$B$2:$N$707,7,FALSE) -> S
A44: 4722 | B44: =VLOOKUP(A44,[2]Ledenlijst!$B$2:$N$707,2,FALSE) -> BLAUWBLOMME Henk | C44: =VLOOKUP(A44,[2]Ledenlijst!$B$2:$N$707,13,FALSE) -> K.Br | D44: =VLOOKUP(A44,[2]Ledenlijst!$B$2:$N$707,7,FALSE) -> S
A45: 5685 | B45: =VLOOKUP(A45,[2]Ledenlijst!$B$2:$N$707,2,FALSE) -> BOECKAERT Eric | C45: =VLOOKUP(A45,[2]Ledenlijst!$B$2:$N$707,13,FALSE) -> K.Br | D45: =VLOOKUP(A45,[2]Ledenlijst!$B$2:$N$707,7,FALSE) -> S
A46: 7462 | B46: =VLOOKUP(A46,[2]Ledenlijst!$B$2:$N$707,2,FALSE) -> CREYF Fernand | C46: =VLOOKUP(A46,[2]Ledenlijst!$B$2:$N$707,13,FALSE) -> K.Br | D46: =VLOOKUP(A46,[2]Ledenlijst!$B$2:$N$707,7,FALSE) -> S
A47: 8921 | B47: =VLOOKUP(A47,[2]Ledenlijst!$B$2:$N$707,2,FALSE) -> CHRISTIAENS Danny | C47: =VLOOKUP(A47,[2]Ledenlijst!$B$2:$N$707,13,FALSE) -> K.Br | D47: =VLOOKUP(A47,[2]Ledenlijst!$B$2:$N$707,7,FALSE) -> S
A48: 9256 | B48: =VLOOKUP(A48,[2]Ledenlijst!$B$2:$N$707,2,FALSE) -> DALLINGA Louis | C48: =VLOOKUP(A48,[2]Ledenlijst!$B$2:$N$707,13,FALSE) -> K.Br | D48: =VLOOKUP(A48,[2]Ledenlijst!$B$2:$N$707,7,FALSE) -> S
A49: 4071 | B49: =VLOOKUP(A49,[2]Ledenlijst!$B$2:$N$707,2,FALSE) -> DE BAERE Eddy | C49: =VLOOKUP(A49,[2]Ledenlijst!$B$2:$N$707,13,FALSE) -> K.Br | D49: =VLOOKUP(A49,[2]Ledenlijst!$B$2:$N$707,7,FALSE) -> S
A50: 9062 | B50: =VLOOKUP(A50,[2]Ledenlijst!$B$2:$N$707,2,FALSE) -> DE BUSSCHER Walter | C50: =VLOOKUP(A50,[2]Ledenlijst!$B$2:$N$707,13,FALSE) -> K.Br | D50: =VLOOKUP(A50,[2]Ledenlijst!$B$2:$N$707,7,FALSE) -> S
A51: 00864 | B51: =VLOOKUP(A51,[2]Ledenlijst!$B$2:$N$707,2,FALSE) -> DECLERCK Gilbert | C51: =VLOOKUP(A51,[2]Ledenlijst!$B$2:$N$707,13,FALSE) -> K.Br | F51: =VLOOKUP(A51,[2]Ledenlijst!$B$2:$N$707,7,FALSE) -> K
A52: 8669 | B52: =VLOOKUP(A52,[2]Ledenlijst!$B$2:$N$707,2,FALSE) -> DE CLERCK Jean | C52: =VLOOKUP(A52,[2]Ledenlijst!$B$2:$N$707,13,FALSE) -> K.Br | D52: =VLOOKUP(A52,[2]Ledenlijst!$B$2:$N$707,7,FALSE) -> S
A53: 6678 | B53: =VLOOKUP(A53,[2]Ledenlijst!$B$2:$N$707,2,FALSE) -> DE CORTE Jan | C53: =VLOOKUP(A53,[2]Ledenlijst!$B$2:$N$707,13,FALSE) -> K.Br | D53: =VLOOKUP(A53,[2]Ledenlijst!$B$2:$N$707,7,FALSE) -> S
A54: 4148 | B54: =VLOOKUP(A54,[2]Ledenlijst!$B$2:$N$707,2,FALSE) -> DE CUYPER René | C54: =VLOOKUP(A54,[2]Ledenlijst!$B$2:$N$707,13,FALSE) -> K.Br | D54: =VLOOKUP(A54,[2]Ledenlijst!$B$2:$N$707,7,FALSE) -> S
A55: 4147 | B55: =VLOOKUP(A55,[2]Ledenlijst!$B$2:$N$707,2,FALSE) -> D'HONT Steven | C55: =VLOOKUP(A55,[2]Ledenlijst!$B$2:$N$707,13,FALSE) -> K.Br | D55: =VLOOKUP(A55,[2]Ledenlijst!$B$2:$N$707,7,FALSE) -> S
A56: 8362 | B56: =VLOOKUP(A56,[2]Ledenlijst!$B$2:$N$707,2,FALSE) -> DE KRAKER Jean Paul | C56: =VLOOKUP(A56,[2]Ledenlijst!$B$2:$N$707,13,FALSE) -> K.Br. | D56: =VLOOKUP(A56,[2]Ledenlijst!$B$2:$N$707,7,FALSE) -> S
A57: 6399 | B57: =VLOOKUP(A57,[2]Ledenlijst!$B$2:$N$707,2,FALSE) -> DELAERE Marc | C57: =VLOOKUP(A57,[2]Ledenlijst!$B$2:$N$707,13,FALSE) -> K.Br | D57: =VLOOKUP(A57,[2]Ledenlijst!$B$2:$N$707,7,FALSE) -> S
A58: 4185B | B58: =VLOOKUP(A58,[2]Ledenlijst!$B$2:$N$707,2,FALSE) -> DEPOORTER Daniel | C58: =VLOOKUP(A58,[2]Ledenlijst!$B$2:$N$707,13,FALSE) -> K.Br | D58: =VLOOKUP(A58,[2]Ledenlijst!$B$2:$N$707,7,FALSE) -> S
A59: 4222 | B59: =VLOOKUP(A59,[2]Ledenlijst!$B$2:$N$707,2,FALSE) -> DEQUEKER Guido | C59: =VLOOKUP(A59,[2]Ledenlijst!$B$2:$N$707,13,FALSE) -> K.Br | D59: =VLOOKUP(A59,[2]Ledenlijst!$B$2:$N$707,7,FALSE) -> S
A60: 4150 | B60: =VLOOKUP(A60,[2]Ledenlijst!$B$2:$N$707,2,FALSE) -> DEVROE Eddy | C60: =VLOOKUP(A60,[2]Ledenlijst!$B$2:$N$707,13,FALSE) -> K.Br | D60: =VLOOKUP(A60,[2]Ledenlijst!$B$2:$N$707,7,FALSE) -> S
A61: 5439 | B61: =VLOOKUP(A61,[2]Ledenlijst!$B$2:$N$707,2,FALSE) -> DUCHEYNE Kenny | C61: =VLOOKUP(A61,[2]Ledenlijst!$B$2:$N$707,13,FALSE) -> K.Br | D61: =VLOOKUP(A61,[2]Ledenlijst!$B$2:$N$707,7,FALSE) -> S
A62: 4644 | B62: =VLOOKUP(A62,[2]Ledenlijst!$B$2:$N$707,2,FALSE) -> DUMON Dirk | C62: =VLOOKUP(A62,[2]Ledenlijst!$B$2:$N$707,13,FALSE) -> K.Br | D62: =VLOOKUP(A62,[2]Ledenlijst!$B$2:$N$707,7,FALSE) -> S
A63: 6680 | B63: =VLOOKUP(A63,[2]Ledenlijst!$B$2:$N$707,2,FALSE) -> FLAMEE Kurt | C63: =VLOOKUP(A63,[2]Ledenlijst!$B$2:$N$707,13,FALSE) -> K.Br | D63: =VLOOKUP(A63,[2]Ledenlijst!$B$2:$N$707,7,FALSE) -> S
A64: 4224 | B64: =VLOOKUP(A64,[2]Ledenlijst!$B$2:$N$707,2,FALSE) -> GUIDE Jean-Pierre | C64: =VLOOKUP(A64,[2]Ledenlijst!$B$2:$N$707,13,FALSE) -> K.Br | D64: =VLOOKUP(A64,[2]Ledenlijst!$B$2:$N$707,7,FALSE) -> S
A65: 7795 | B65: =VLOOKUP(A65,[2]Ledenlijst!$B$2:$N$707,2,FALSE) -> HACKE Jean-Marie | C65: =VLOOKUP(A65,[2]Ledenlijst!$B$2:$N$707,13,FALSE) -> K.Br | D65: =VLOOKUP(A65,[2]Ledenlijst!$B$2:$N$707,7,FALSE) -> S
A66: 8881 | B66: =VLOOKUP(A66,[2]Ledenlijst!$B$2:$N$707,2,FALSE) -> HERPOEL Rony | C66: =VLOOKUP(A66,[2]Ledenlijst!$B$2:$N$707,13,FALSE) -> K.Br | D66: =VLOOKUP(A66,[2]Ledenlijst!$B$2:$N$707,7,FALSE) -> S
A67: 4779 | B67: =VLOOKUP(A67,[2]Ledenlijst!$B$2:$N$707,2,FALSE) -> LEYS Bart | C67: =VLOOKUP(A67,[2]Ledenlijst!$B$2:$N$707,13,FALSE) -> K.Br | D67: =VLOOKUP(A67,[2]Ledenlijst!$B$2:$N$707,7,FALSE) -> S
A68: 9257 | B68: =VLOOKUP(A68,[2]Ledenlijst!$B$2:$N$707,2,FALSE) -> MUS Hendrik | C68: =VLOOKUP(A68,[2]Ledenlijst!$B$2:$N$707,13,FALSE) -> K.Br | D68: =VLOOKUP(A68,[2]Ledenlijst!$B$2:$N$707,7,FALSE) -> S
A69: 4363 | B69: =VLOOKUP(A69,[2]Ledenlijst!$B$2:$N$707,2,FALSE) -> PRIEUS Andy | C69: =VLOOKUP(A69,[2]Ledenlijst!$B$2:$N$707,13,FALSE) -> K.Br. | D69: =VLOOKUP(A69,[2]Ledenlijst!$B$2:$N$707,7,FALSE) -> S
A70: 6081 | B70: =VLOOKUP(A70,[2]Ledenlijst!$B$2:$N$707,2,FALSE) -> QUITTELIER Stephan | C70: =VLOOKUP(A70,[2]Ledenlijst!$B$2:$N$707,13,FALSE) -> K.Br | D70: =VLOOKUP(A70,[2]Ledenlijst!$B$2:$N$707,7,FALSE) -> S
A71: 4187 | B71: =VLOOKUP(A71,[2]Ledenlijst!$B$2:$N$707,2,FALSE) -> ROGIERS Marc | C71: =VLOOKUP(A71,[2]Ledenlijst!$B$2:$N$707,13,FALSE) -> K.Br | D71: =VLOOKUP(A71,[2]Ledenlijst!$B$2:$N$707,7,FALSE) -> S
A72: 5689 | B72: =VLOOKUP(A72,[2]Ledenlijst!$B$2:$N$707,2,FALSE) -> SAVER Koen | C72: =VLOOKUP(A72,[2]Ledenlijst!$B$2:$N$707,13,FALSE) -> K.Br | D72: =VLOOKUP(A72,[2]Ledenlijst!$B$2:$N$707,7,FALSE) -> S
A73: 8670 | B73: =VLOOKUP(A73,[2]Ledenlijst!$B$2:$N$707,2,FALSE) -> SCHOE Henk | C73: =VLOOKUP(A73,[2]Ledenlijst!$B$2:$N$707,13,FALSE) -> K.Br | D73: =VLOOKUP(A73,[2]Ledenlijst!$B$2:$N$707,7,FALSE) -> S
A74: 4682B | B74: =VLOOKUP(A74,[2]Ledenlijst!$B$2:$N$707,2,FALSE) -> SCHOUTETENS Pieter | C74: =VLOOKUP(A74,[2]Ledenlijst!$B$2:$N$707,13,FALSE) -> K.Br | D74: =VLOOKUP(A74,[2]Ledenlijst!$B$2:$N$707,7,FALSE) -> S
A75: 4557 | B75: =VLOOKUP(A75,[2]Ledenlijst!$B$2:$N$707,2,FALSE) -> SERWEYTENS Lieven | C75: =VLOOKUP(A75,[2]Ledenlijst!$B$2:$N$707,13,FALSE) -> K.Br | D75: =VLOOKUP(A75,[2]Ledenlijst!$B$2:$N$707,7,FALSE) -> S
A76: 8162 | B76: =VLOOKUP(A76,[2]Ledenlijst!$B$2:$N$707,2,FALSE) -> SEYS Herbert | C76: =VLOOKUP(A76,[2]Ledenlijst!$B$2:$N$707,13,FALSE) -> K.Br | D76: =VLOOKUP(A76,[2]Ledenlijst!$B$2:$N$707,7,FALSE) -> S
A77: 4156 | B77: =VLOOKUP(A77,[2]Ledenlijst!$B$2:$N$707,2,FALSE) -> SEYS Norbert | C77: =VLOOKUP(A77,[2]Ledenlijst!$B$2:$N$707,13,FALSE) -> K.Br | D77: =VLOOKUP(A77,[2]Ledenlijst!$B$2:$N$707,7,FALSE) -> S
A78: 9258 | B78: =VLOOKUP(A78,[2]Ledenlijst!$B$2:$N$707,2,FALSE) -> STEFFENS Alain | C78: =VLOOKUP(A78,[2]Ledenlijst!$B$2:$N$707,13,FALSE) -> K.Br | D78: =VLOOKUP(A78,[2]Ledenlijst!$B$2:$N$707,7,FALSE) -> S
A79: 8454 | B79: =VLOOKUP(A79,[2]Ledenlijst!$B$2:$N$707,2,FALSE) -> STUYVAERT Marijn | C79: =VLOOKUP(A79,[2]Ledenlijst!$B$2:$N$707,13,FALSE) -> K.Br | D79: =VLOOKUP(A79,[2]Ledenlijst!$B$2:$N$707,7,FALSE) -> S
A80: 5691 | B80: =VLOOKUP(A80,[2]Ledenlijst!$B$2:$N$707,2,FALSE) -> TORRES Manuel | C80: =VLOOKUP(A80,[2]Ledenlijst!$B$2:$N$707,13,FALSE) -> K.Br | D80: =VLOOKUP(A80,[2]Ledenlijst!$B$2:$N$707,7,FALSE) -> S
A81: 2944 | B81: =VLOOKUP(A81,[2]Ledenlijst!$B$2:$N$707,2,FALSE) -> 'T SEYEN Roland | C81: =VLOOKUP(A81,[2]Ledenlijst!$B$2:$N$707,13,FALSE) -> K.Br | D81: =VLOOKUP(A81,[2]Ledenlijst!$B$2:$N$707,7,FALSE) -> S
A82: 4267 | B82: =VLOOKUP(A82,[2]Ledenlijst!$B$2:$N$707,2,FALSE) -> THOMAS Peter | C82: =VLOOKUP(A82,[2]Ledenlijst!$B$2:$N$707,13,FALSE) -> K.Br | D82: =VLOOKUP(A82,[2]Ledenlijst!$B$2:$N$707,7,FALSE) -> S
A83: 5408 | B83: =VLOOKUP(A83,[2]Ledenlijst!$B$2:$N$707,2,FALSE) -> VANRAPENBUSCH Franky | C83: =VLOOKUP(A83,[2]Ledenlijst!$B$2:$N$707,13,FALSE) -> K.Br. | D83: =VLOOKUP(A83,[2]Ledenlijst!$B$2:$N$707,7,FALSE) -> S
A84: 7529 | B84: =VLOOKUP(A84,[2]Ledenlijst!$B$2:$N$707,2,FALSE) -> VASSEUR Patrick | C84: =VLOOKUP(A84,[2]Ledenlijst!$B$2:$N$707,13,FALSE) -> K.Br | D84: =VLOOKUP(A84,[2]Ledenlijst!$B$2:$N$707,7,FALSE) -> S
A85: 4242 | B85: =VLOOKUP(A85,[2]Ledenlijst!$B$2:$N$707,2,FALSE) -> VERCRUYSSE Johan | C85: =VLOOKUP(A85,[2]Ledenlijst!$B$2:$N$707,13,FALSE) -> K.Br | D85: =VLOOKUP(A85,[2]Ledenlijst!$B$2:$N$707,7,FALSE) -> S | G85: =COUNTA(A41:A85) -> 45 | I85: K.Br
A86: 4065 | B86: =VLOOKUP(A86,[2]Ledenlijst!$B$2:$N$707,2,FALSE) -> BAERT Rony | C86: =VLOOKUP(A86,[2]Ledenlijst!$B$2:$N$707,13,FALSE) -> OBA | D86: =VLOOKUP(A86,[2]Ledenlijst!$B$2:$N$707,7,FALSE) -> S
A87: 4158B | B87: =VLOOKUP(A87,[2]Ledenlijst!$B$2:$N$707,2,FALSE) -> BAUWENS Freddy | C87: =VLOOKUP(A87,[2]Ledenlijst!$B$2:$N$707,13,FALSE) -> OBA | D87: =VLOOKUP(A87,[2]Ledenlijst!$B$2:$N$707,7,FALSE) -> S
A88: 4246 | B88: =VLOOKUP(A88,[2]Ledenlijst!$B$2:$N$707,2,FALSE) -> BOLLE Jean-Marie | C88: =VLOOKUP(A88,[2]Ledenlijst!$B$2:$N$707,13,FALSE) -> OBA | D88: =VLOOKUP(A88,[2]Ledenlijst!$B$2:$N$707,7,FALSE) -> S
A89: 00865 | B89: =VLOOKUP(A89,[2]Ledenlijst!$B$2:$N$707,2,FALSE) -> BONCHAK Svitlana | C89: =VLOOKUP(A89,[2]Ledenlijst!$B$2:$N$707,13,FALSE) -> OBA | F89: =VLOOKUP(A89,[2]Ledenlijst!$B$2:$N$707,7,FALSE) -> K
A90: 4247 | B90: =VLOOKUP(A90,[2]Ledenlijst!$B$2:$N$707,2,FALSE) -> BORNY Franky | C90: =VLOOKUP(A90,[2]Ledenlijst!$B$2:$N$707,13,FALSE) -> OBA | D90: =VLOOKUP(A90,[2]Ledenlijst!$B$2:$N$707,7,FALSE) -> S
A91: 9296 | B91: =VLOOKUP(A91,[2]Ledenlijst!$B$2:$N$707,2,FALSE) -> BORREMANS Edouard | C91: =VLOOKUP(A91,[2]Ledenlijst!$B$2:$N$707,13,FALSE) -> OBA | D91: =VLOOKUP(A91,[2]Ledenlijst!$B$2:$N$707,7,FALSE) -> S
A92: 4249 | B92: =VLOOKUP(A92,[2]Ledenlijst!$B$2:$N$707,2,FALSE) -> BRISSINCK Danny | C92: =VLOOKUP(A92,[2]Ledenlijst!$B$2:$N$707,13,FALSE) -> OBA | D92: =VLOOKUP(A92,[2]Ledenlijst!$B$2:$N$707,7,FALSE) -> S
A93: 00866 | B93: =VLOOKUP(A93,[2]Ledenlijst!$B$2:$N$707,2,FALSE) -> CANNOODT Christiane | C93: =VLOOKUP(A93,[2]Ledenlijst!$B$2:$N$707,13,FALSE) -> OBA | F93: =VLOOKUP(A93,[2]Ledenlijst!$B$2:$N$707,7,FALSE) -> K
A94: 4162B | B94: =VLOOKUP(A94,[2]Ledenlijst!$B$2:$N$707,2,FALSE) -> CAPPELLE Eddy | C94: =VLOOKUP(A94,[2]Ledenlijst!$B$2:$N$707,13,FALSE) -> OBA | D94: =VLOOKUP(A94,[2]Ledenlijst!$B$2:$N$707,7,FALSE) -> S
A95: 1376 | B95: =VLOOKUP(A95,[2]Ledenlijst!$B$2:$N$707,2,FALSE) -> CEULEMANS Lodewijck | C95: =VLOOKUP(A95,[2]Ledenlijst!$B$2:$N$707,13,FALSE) -> OBA | D95: =VLOOKUP(A95,[2]Ledenlijst!$B$2:$N$707,7,FALSE) -> S
A96: 4250 | B96: =VLOOKUP(A96,[2]Ledenlijst!$B$2:$N$707,2,FALSE) -> COBBAERT Thierry | C96: =VLOOKUP(A96,[2]Ledenlijst!$B$2:$N$707,13,FALSE) -> OBA | D96: =VLOOKUP(A96,[2]Ledenlijst!$B$2:$N$707,7,FALSE) -> S
A97: 00902 | B97: =VLOOKUP(A97,[2]Ledenlijst!$B$2:$N$707,2,FALSE) -> COOLS Cathérine | C97: =VLOOKUP(A97,[2]Ledenlijst!$B$2:$N$707,13,FALSE) -> OBA | F97: =VLOOKUP(A97,[2]Ledenlijst!$B$2:$N$707,7,FALSE) -> K
A98: 00607 | B98: =VLOOKUP(A98,[2]Ledenlijst!$B$2:$N$707,2,FALSE) -> CUVELIER Ann | C98: =VLOOKUP(A98,[2]Ledenlijst!$B$2:$N$707,13,FALSE) -> OBA | F98: =VLOOKUP(A98,[2]Ledenlijst!$B$2:$N$707,7,FALSE) -> K
A99: 00653 | B99: =VLOOKUP(A99,[2]Ledenlijst!$B$2:$N$707,2,FALSE) -> DE CLERCK Jeanine | C99: =VLOOKUP(A99,[2]Ledenlijst!$B$2:$N$707,13,FALSE) -> OBA | F99: =VLOOKUP(A99,[2]Ledenlijst!$B$2:$N$707,7,FALSE) -> K
A100: 4252 | B100: =VLOOKUP(A100,[2]Ledenlijst!$B$2:$N$707,2,FALSE) -> DEJONGHE Freddy | C100: =VLOOKUP(A100,[2]Ledenlijst!$B$2:$N$707,13,FALSE) -> OBA | D100: =VLOOKUP(A100,[2]Ledenlijst!$B$2:$N$707,7,FALSE) -> S
A101: 00904 | B101: =VLOOKUP(A101,[2]Ledenlijst!$B$2:$N$707,2,FALSE) -> DELVA Rita | C101: =VLOOKUP(A101,[2]Ledenlijst!$B$2:$N$707,13,FALSE) -> OBA | F101: =VLOOKUP(A101,[2]Ledenlijst!$B$2:$N$707,7,FALSE) -> K
A102: 4635 | B102: =VLOOKUP(A102,[2]Ledenlijst!$B$2:$N$707,2,FALSE) -> DEVLIEGER Raoul | C102: =VLOOKUP(A102,[2]Ledenlijst!$B$2:$N$707,13,FALSE) -> OBA | D102: =VLOOKUP(A102,[2]Ledenlijst!$B$2:$N$707,7,FALSE) -> S
A103: 7802 | B103: =VLOOKUP(A103,[2]Ledenlijst!$B$2:$N$707,2,FALSE) -> DOUCHAMPS Olivier | C103: =VLOOKUP(A103,[2]Ledenlijst!$B$2:$N$707,13,FALSE) -> OBA | D103: =VLOOKUP(A103,[2]Ledenlijst!$B$2:$N$707,7,FALSE) -> S
A104: 00868 | B104: =VLOOKUP(A104,[2]Ledenlijst!$B$2:$N$707,2,FALSE) -> EECKHOUT Vera | C104: =VLOOKUP(A104,[2]Ledenlijst!$B$2:$N$707,13,FALSE) -> OBA | F104: =VLOOKUP(A104,[2]Ledenlijst!$B$2:$N$707,7,FALSE) -> K
A105: 9414 | B105: =VLOOKUP(A105,[2]Ledenlijst!$B$2:$N$707,2,FALSE) -> EUSSEN Gerardus | C105: =VLOOKUP(A105,[2]Ledenlijst!$B$2:$N$707,13,FALSE) -> OBA | D105: =VLOOKUP(A105,[2]Ledenlijst!$B$2:$N$707,7,FALSE) -> S
A106: 4254 | B106: =VLOOKUP(A106,[2]Ledenlijst!$B$2:$N$707,2,FALSE) -> EVERAERT Luc | C106: =VLOOKUP(A106,[2]Ledenlijst!$B$2:$N$707,13,FALSE) -> OBA | D106: =VLOOKUP(A106,[2]Ledenlijst!$B$2:$N$707,7,FALSE) -> S
A107: 8045 | B107: =VLOOKUP(A107,[2]Ledenlijst!$B$2:$N$707,2,FALSE) -> GARRE Roger | C107: =VLOOKUP(A107,[2]Ledenlijst!$B$2:$N$707,13,FALSE) -> OBA | D107: =VLOOKUP(A107,[2]Ledenlijst!$B$2:$N$707,7,FALSE) -> S
A108: 00870 | B108: =VLOOKUP(A108,[2]Ledenlijst!$B$2:$N$707,2,FALSE) -> GEERLANDT José | C108: =VLOOKUP(A108,[2]Ledenlijst!$B$2:$N$707,13,FALSE) -> OBA | F108: =VLOOKUP(A108,[2]Ledenlijst!$B$2:$N$707,7,FALSE) -> K
A109: 9977 | B109: =VLOOKUP(A109,[2]Ledenlijst!$B$2:$N$707,2,FALSE) -> GOEMAERE Yves | C109: =VLOOKUP(A109,[2]Ledenlijst!$B$2:$N$707,13,FALSE) -> OBA | D109: =VLOOKUP(A109,[2]Ledenlijst!$B$2:$N$707,7,FALSE) -> S
A110: 8917 | B110: =VLOOKUP(A110,[2]Ledenlijst!$B$2:$N$707,2,FALSE) -> GREMAIN Gino | C110: =VLOOKUP(A110,[2]Ledenlijst!$B$2:$N$707,13,FALSE) -> OBA | D110: =VLOOKUP(A110,[2]Ledenlijst!$B$2:$N$707,7,FALSE) -> S
A111: 4256 | B111: =VLOOKUP(A111,[2]Ledenlijst!$B$2:$N$707,2,FALSE) -> HELSMOORTEL Rik | C111: =VLOOKUP(A111,[2]Ledenlijst!$B$2:$N$707,13,FALSE) -> OBA | D111: =VLOOKUP(A111,[2]Ledenlijst!$B$2:$N$707,7,FALSE) -> S
A112: 00871 | B112: =VLOOKUP(A112,[2]Ledenlijst!$B$2:$N$707,2,FALSE) -> HERMAN Arlette | C112: =VLOOKUP(A112,[2]Ledenlijst!$B$2:$N$707,13,FALSE) -> OBA | F112: =VLOOKUP(A112,[2]Ledenlijst!$B$2:$N$707,7,FALSE) -> K
A113: 00872 | B113: =VLOOKUP(A113,[2]Ledenlijst!$B$2:$N$707,2,FALSE) -> LAMMENS Robert | C113: =VLOOKUP(A113,[2]Ledenlijst!$B$2:$N$707,13,FALSE) -> OBA | F113: =VLOOKUP(A113,[2]Ledenlijst!$B$2:$N$707,7,FALSE) -> K
A114: 9253 | B114: =VLOOKUP(A114,[2]Ledenlijst!$B$2:$N$707,2,FALSE) -> LINTHOUT Freddy | C114: =VLOOKUP(A114,[2]Ledenlijst!$B$2:$N$707,13,FALSE) -> OBA | D114: =VLOOKUP(A114,[2]Ledenlijst!$B$2:$N$707,7,FALSE) -> S
A115: 8296 | B115: =VLOOKUP(A115,[2]Ledenlijst!$B$2:$N$707,2,FALSE) -> MAES Jozef | C115: =VLOOKUP(A115,[2]Ledenlijst!$B$2:$N$707,13,FALSE) -> OBA | D115: =VLOOKUP(A115,[2]Ledenlijst!$B$2:$N$707,7,FALSE) -> S
A116: 00621 | B116: =VLOOKUP(A116,[2]Ledenlijst!$B$2:$N$707,2,FALSE) -> MESSENS Isabelle | C116: =VLOOKUP(A116,[2]Ledenlijst!$B$2:$N$707,13,FALSE) -> OBA | F116: =VLOOKUP(A116,[2]Ledenlijst!$B$2:$N$707,7,FALSE) -> K
A117: 6456 | B117: =VLOOKUP(A117,[2]Ledenlijst!$B$2:$N$707,2,FALSE) -> PLOVIE Herbert | C117: =VLOOKUP(A117,[2]Ledenlijst!$B$2:$N$707,13,FALSE) -> OBA | D117: =VLOOKUP(A117,[2]Ledenlijst!$B$2:$N$707,7,FALSE) -> S
A118: 5900 | B118: =VLOOKUP(A118,[2]Ledenlijst!$B$2:$N$707,2,FALSE) -> PUYSTIENS Stephan | C118: =VLOOKUP(A118,[2]Ledenlijst!$B$2:$N$707,13,FALSE) -> OBA | D118: =VLOOKUP(A118,[2]Ledenlijst!$B$2:$N$707,7,FALSE) -> S
A119: 7466 | B119: =VLOOKUP(A119,[2]Ledenlijst!$B$2:$N$707,2,FALSE) -> ROBYN Willy | C119: =VLOOKUP(A119,[2]Ledenlijst!$B$2:$N$707,13,FALSE) -> OBA | D119: =VLOOKUP(A119,[2]Ledenlijst!$B$2:$N$707,7,FALSE) -> S
A120: 00900 | B120: =VLOOKUP(A120,[2]Ledenlijst!$B$2:$N$707,2,FALSE) -> RYCKEWAERT Sonja | C120: =VLOOKUP(A120,[2]Ledenlijst!$B$2:$N$707,13,FALSE) -> OBA | F120: =VLOOKUP(A120,[2]Ledenlijst!$B$2:$N$707,7,FALSE) -> K
A121: 4262 | B121: =VLOOKUP(A121,[2]Ledenlijst!$B$2:$N$707,2,FALSE) -> SANCTORUM Daniel | C121: =VLOOKUP(A121,[2]Ledenlijst!$B$2:$N$707,13,FALSE) -> OBA | D121: =VLOOKUP(A121,[2]Ledenlijst!$B$2:$N$707,7,FALSE) -> S
A122: 4263 | B122: =VLOOKUP(A122,[2]Ledenlijst!$B$2:$N$707,2,FALSE) -> SCHLAPA Harald | C122: =VLOOKUP(A122,[2]Ledenlijst!$B$2:$N$707,13,FALSE) -> OBA | D122: =VLOOKUP(A122,[2]Ledenlijst!$B$2:$N$707,7,FALSE) -> S
A123: 9969 | B123: =VLOOKUP(A123,[2]Ledenlijst!$B$2:$N$707,2,FALSE) -> SPILIERS Marc | C123: =VLOOKUP(A123,[2]Ledenlijst!$B$2:$N$707,13,FALSE) -> OBA | D123: =VLOOKUP(A123,[2]Ledenlijst!$B$2:$N$707,7,FALSE) -> S
A124: 4264 | B124: =VLOOKUP(A124,[2]Ledenlijst!$B$2:$N$707,2,FALSE) -> STEEN Gilbert | C124: =VLOOKUP(A124,[2]Ledenlijst!$B$2:$N$707,13,FALSE) -> OBA | D124: =VLOOKUP(A124,[2]Ledenlijst!$B$2:$N$707,7,FALSE) -> S
A125: 4265 | B125: =VLOOKUP(A125,[2]Ledenlijst!$B$2:$N$707,2,FALSE) -> STEMGEE Hugo | C125: =VLOOKUP(A125,[2]Ledenlijst!$B$2:$N$707,13,FALSE) -> OBA | D125: =VLOOKUP(A125,[2]Ledenlijst!$B$2:$N$707,7,FALSE) -> S
A126: 4269 | B126: =VLOOKUP(A126,[2]Ledenlijst!$B$2:$N$707,2,FALSE) -> TRATSAERT Daniel | C126: =VLOOKUP(A126,[2]Ledenlijst!$B$2:$N$707,13,FALSE) -> OBA | D126: =VLOOKUP(A126,[2]Ledenlijst!$B$2:$N$707,7,FALSE) -> S
A127: 2228 | B127: =VLOOKUP(A127,[2]Ledenlijst!$B$2:$N$707,2,FALSE) -> VAN BENEDEN Alain | C127: =VLOOKUP(A127,[2]Ledenlijst!$B$2:$N$707,13,FALSE) -> OBA | D127: =VLOOKUP(A127,[2]Ledenlijst!$B$2:$N$707,7,FALSE) -> S
A128: 9989 | B128: =VLOOKUP(A128,[2]Ledenlijst!$B$2:$N$707,2,FALSE) -> VAN BOGAERT Marc | C128: =VLOOKUP(A128,[2]Ledenlijst!$B$2:$N$707,13,FALSE) -> OBA | D128: =VLOOKUP(A128,[2]Ledenlijst!$B$2:$N$707,7,FALSE) -> S
A129: 9993 | B129: =VLOOKUP(A129,[2]Ledenlijst!$B$2:$N$707,2,FALSE) -> VAN den BERGEN Joel | C129: =VLOOKUP(A129,[2]Ledenlijst!$B$2:$N$707,13,FALSE) -> OBA | D129: =VLOOKUP(A129,[2]Ledenlijst!$B$2:$N$707,7,FALSE) -> S
A130: 00901 | B130: =VLOOKUP(A130,[2]Ledenlijst!$B$2:$N$707,2,FALSE) -> VANDENBROUCKE Christel | C130: =VLOOKUP(A130,[2]Ledenlijst!$B$2:$N$707,13,FALSE) -> OBA | F130: =VLOOKUP(A130,[2]Ledenlijst!$B$2:$N$707,7,FALSE) -> K
A131: 4277 | B131: =VLOOKUP(A131,[2]Ledenlijst!$B$2:$N$707,2,FALSE) -> VANDENBROUCKE Joel | C131: =VLOOKUP(A131,[2]Ledenlijst!$B$2:$N$707,13,FALSE) -> OBA | D131: =VLOOKUP(A131,[2]Ledenlijst!$B$2:$N$707,7,FALSE) -> S
A132: 7681 | B132: =VLOOKUP(A132,[2]Ledenlijst!$B$2:$N$707,2,FALSE) -> VAN DE VELDE Jozef | C132: =VLOOKUP(A132,[2]Ledenlijst!$B$2:$N$707,13,FALSE) -> OBA | D132: =VLOOKUP(A132,[2]Ledenlijst!$B$2:$N$707,7,FALSE) -> S
A133: 00873 | B133: =VLOOKUP(A133,[2]Ledenlijst!$B$2:$N$707,2,FALSE) -> VAN DE WYNCKEL Gustaaf | C133: =VLOOKUP(A133,[2]Ledenlijst!$B$2:$N$707,13,FALSE) -> OBA | F133: =VLOOKUP(A133,[2]Ledenlijst!$B$2:$N$707,7,FALSE) -> K
A134: 4274 | B134: =VLOOKUP(A134,[2]Ledenlijst!$B$2:$N$707,2,FALSE) -> VAN HESTE Jean Pierre | C134: =VLOOKUP(A134,[2]Ledenlijst!$B$2:$N$707,13,FALSE) -> OBA | D134: =VLOOKUP(A134,[2]Ledenlijst!$B$2:$N$707,7,FALSE) -> S
A135: 00875 | B135: =VLOOKUP(A135,[2]Ledenlijst!$B$2:$N$707,2,FALSE) -> VANNEUVILLE Gilberte | C135: =VLOOKUP(A135,[2]Ledenlijst!$B$2:$N$707,13,FALSE) -> OBA | F135: =VLOOKUP(A135,[2]Ledenlijst!$B$2:$N$707,7,FALSE) -> K
A136: 9514 | B136: =VLOOKUP(A136,[2]Ledenlijst!$B$2:$N$707,2,FALSE) -> VANROOSE Matteo | C136: =VLOOKUP(A136,[2]Ledenlijst!$B$2:$N$707,13,FALSE) -> OBA | E136: J
A137: 4276 | B137: =VLOOKUP(A137,[2]Ledenlijst!$B$2:$N$707,2,FALSE) -> VAN WESEMAEL Walter | C137: =VLOOKUP(A137,[2]Ledenlijst!$B$2:$N$707,13,FALSE) -> OBA | D137: =VLOOKUP(A137,[2]Ledenlijst!$B$2:$N$707,7,FALSE) -> S
A138: 4207 | B138: =VLOOKUP(A138,[2]Ledenlijst!$B$2:$N$707,2,FALSE) -> VELGHE Stefaan | C138: =VLOOKUP(A138,[2]Ledenlijst!$B$2:$N$707,13,FALSE) -> OBA | D138: =VLOOKUP(A138,[2]Ledenlijst!$B$2:$N$707,7,FALSE) -> S
A139: 1554 | B139: =VLOOKUP(A139,[2]Ledenlijst!$B$2:$N$707,2,FALSE) -> VERLAECKE Rudy | C139: =VLOOKUP(A139,[2]Ledenlijst!$B$2:$N$707,13,FALSE) -> OBA | D139: =VLOOKUP(A139,[2]Ledenlijst!$B$2:$N$707,7,FALSE) -> S
A140: 00905 | B140: =VLOOKUP(A140,[2]Ledenlijst!$B$2:$N$707,2,FALSE) -> VERSCHUERE Chanel | C140: =VLOOKUP(A140,[2]Ledenlijst!$B$2:$N$707,13,FALSE) -> OBA | F140: =VLOOKUP(A140,[2]Ledenlijst!$B$2:$N$707,7,FALSE) -> K
A141: 7800 | B141: =VLOOKUP(A141,[2]Ledenlijst!$B$2:$N$707,2,FALSE) -> VERSCHUERE Guy | C141: =VLOOKUP(A141,[2]Ledenlijst!$B$2:$N$707,13,FALSE) -> OBA | D141: =VLOOKUP(A141,[2]Ledenlijst!$B$2:$N$707,7,FALSE) -> S
A142: 4280 | B142: =VLOOKUP(A142,[2]Ledenlijst!$B$2:$N$707,2,FALSE) -> ZONNEKEIN Henri | C142: =VLOOKUP(A142,[2]Ledenlijst!$B$2:$N$707,13,FALSE) -> OBA | D142: =VLOOKUP(A142,[2]Ledenlijst!$B$2:$N$707,7,FALSE) -> S | G142: =COUNTA(A86:A142) -> 57 | I142: OBA
C144: =COUNTA(C3:C143) -> 140 | D144: =COUNTA(D3:D143) -> 106 | E144: =COUNTA(E3:E143) -> 1 | F144: =COUNTA(F3:F143) -> 33 | H144: =SUM(G3:G143) -> 140 | I144: Bgge-Zeek
A147: 00886 | B147: =VLOOKUP(A147,[2]Ledenlijst!$B$2:$N$707,2,FALSE) -> AMANT Erik | C147: =VLOOKUP(A147,[2]Ledenlijst!$B$2:$N$707,13,FALSE) -> SMA | F147: =VLOOKUP(A147,[2]Ledenlijst!$B$2:$N$707,7,FALSE) -> K
A148: 00863 | B148: =VLOOKUP(A148,[2]Ledenlijst!$B$2:$N$707,2,FALSE) -> DE SMET Marc | C148: =VLOOKUP(A148,[2]Ledenlijst!$B$2:$N$707,13,FALSE) -> SMA | F148: =VLOOKUP(A148,[2]Ledenlijst!$B$2:$N$707,7,FALSE) -> K
A149: 4294 | B149: =VLOOKUP(A149,[2]Ledenlijst!$B$2:$N$707,2,FALSE) -> MATTENS Roger | C149: =VLOOKUP(A149,[2]Ledenlijst!$B$2:$N$707,13,FALSE) -> SMA | D149: =VLOOKUP(A149,[2]Ledenlijst!$B$2:$N$707,7,FALSE) -> S
A150: 00468 | B150: =VLOOKUP(A150,[2]Ledenlijst!$B$2:$N$707,2,FALSE) -> MEERT Luc | C150: =VLOOKUP(A150,[2]Ledenlijst!$B$2:$N$707,13,FALSE) -> SMA | F150: =VLOOKUP(A150,[2]Ledenlijst!$B$2:$N$707,7,FALSE) -> K
A151: 7297 | B151: =VLOOKUP(A151,[2]Ledenlijst!$B$2:$N$707,2,FALSE) -> MESKENS Eduard | C151: =VLOOKUP(A151,[2]Ledenlijst!$B$2:$N$707,13,FALSE) -> SMA | D151: =VLOOKUP(A151,[2]Ledenlijst!$B$2:$N$707,7,FALSE) -> S
A152: 00885 | B152: =VLOOKUP(A152,[2]Ledenlijst!$B$2:$N$707,2,FALSE) -> PUTTEMAN François | C152: =VLOOKUP(A152,[2]Ledenlijst!$B$2:$N$707,13,FALSE) -> SMA | F152: =VLOOKUP(A152,[2]Ledenlijst!$B$2:$N$707,7,FALSE) -> K
A153: 9416 | B153: =VLOOKUP(A153,[2]Ledenlijst!$B$2:$N$707,2,FALSE) -> RIEMKENS Wilfried | C153: =VLOOKUP(A153,[2]Ledenlijst!$B$2:$N$707,13,FALSE) -> SMA | D153: =VLOOKUP(A153,[2]Ledenlijst!$B$2:$N$707,7,FALSE) -> S
A154: 9417 | B154: =VLOOKUP(A154,[2]Ledenlijst!$B$2:$N$707,2,FALSE) -> ROGIERS Marc | C154: =VLOOKUP(A154,[2]Ledenlijst!$B$2:$N$707,13,FALSE) -> SMA | D154: =VLOOKUP(A154,[2]Ledenlijst!$B$2:$N$707,7,FALSE) -> S
A155: 7048 | B155: =VLOOKUP(A155,[2]Ledenlijst!$B$2:$N$707,2,FALSE) -> STILTEN Rik | C155: =VLOOKUP(A155,[2]Ledenlijst!$B$2:$N$707,13,FALSE) -> SMA | D155: =VLOOKUP(A155,[2]Ledenlijst!$B$2:$N$707,7,FALSE) -> S
A156: 1170 | B156: =VLOOKUP(A156,[2]Ledenlijst!$B$2:$N$707,2,FALSE) -> TEMMERMAN,Dirk | C156: =VLOOKUP(A156,[2]Ledenlijst!$B$2:$N$707,13,FALSE) -> SMA | D156: =VLOOKUP(A156,[2]Ledenlijst!$B$2:$N$707,7,FALSE) -> S
A157: KKSM1 | B157: =VLOOKUP(A157,[2]Ledenlijst!$B$2:$N$707,2,FALSE) -> VAN DEN BERGHE Damiaan | C157: =VLOOKUP(A157,[2]Ledenlijst!$B$2:$N$707,13,FALSE) -> SMA | F157: =VLOOKUP(A157,[2]Ledenlijst!$B$2:$N$707,7,FALSE) -> K
A158: KKSM2 | B158: =VLOOKUP(A158,[2]Ledenlijst!$B$2:$N$707,2,FALSE) -> VAN DEN BOSSCHE Cesar | C158: =VLOOKUP(A158,[2]Ledenlijst!$B$2:$N$707,13,FALSE) -> SMA | F158: =VLOOKUP(A158,[2]Ledenlijst!$B$2:$N$707,7,FALSE) -> K
A159: 4297 | B159: =VLOOKUP(A159,[2]Ledenlijst!$B$2:$N$707,2,FALSE) -> VAN DEN BOSSCHE Christian | C159: =VLOOKUP(A159,[2]Ledenlijst!$B$2:$N$707,13,FALSE) -> SMA | D159: =VLOOKUP(A159,[2]Ledenlijst!$B$2:$N$707,7,FALSE) -> S
A160: 4974 | B160: =VLOOKUP(A160,[2]Ledenlijst!$B$2:$N$707,2,FALSE) -> VAN DEN BROECK Harry | C160: =VLOOKUP(A160,[2]Ledenlijst!$B$2:$N$707,13,FALSE) -> SMA | D160: =VLOOKUP(A160,[2]Ledenlijst!$B$2:$N$707,7,FALSE) -> S
A161: 9972 | B161: =VLOOKUP(A161,[2]Ledenlijst!$B$2:$N$707,2,FALSE) -> VAN DE VONDEL Dirk | C161: =VLOOKUP(A161,[2]Ledenlijst!$B$2:$N$707,13,FALSE) -> SMA | D161: =VLOOKUP(A161,[2]Ledenlijst!$B$2:$N$707,7,FALSE) -> S
A162: 4301 | B162: =VLOOKUP(A162,[2]Ledenlijst!$B$2:$N$707,2,FALSE) -> VAN GOETHEM Glenn | C162: =VLOOKUP(A162,[2]Ledenlijst!$B$2:$N$707,13,FALSE) -> SMA | D162: =VLOOKUP(A162,[2]Ledenlijst!$B$2:$N$707,7,FALSE) -> S
A163: 9415 | B163: =VLOOKUP(A163,[2]Ledenlijst!$B$2:$N$707,2,FALSE) -> VERHOEYEN Eddy | C163: =VLOOKUP(A163,[2]Ledenlijst!$B$2:$N$707,13,FALSE) -> SMA | D163: =VLOOKUP(A163,[2]Ledenlijst!$B$2:$N$707,7,FALSE) -> S
A164: 9973 | B164: =VLOOKUP(A164,[2]Ledenlijst!$B$2:$N$707,2,FALSE) -> VERHULST Jean-Paul | C164: =VLOOKUP(A164,[2]Ledenlijst!$B$2:$N$707,13,FALSE) -> SMA | D164: =VLOOKUP(A164,[2]Ledenlijst!$B$2:$N$707,7,FALSE) -> S
A165: 6694 | B165: =VLOOKUP(A165,[2]Ledenlijst!$B$2:$N$707,2,FALSE) -> VINCK Eddie | C165: =VLOOKUP(A165,[2]Ledenlijst!$B$2:$N$707,13,FALSE) -> SMA | D165: =VLOOKUP(A165,[2]Ledenlijst!$B$2:$N$707,7,FALSE) -> S | G165: =COUNTA(A147:A165) -> 19 | I165: SMA
A166: 9515 | B166: =VLOOKUP(A166,[2]Ledenlijst!$B$2:$N$707,2,FALSE) -> CEULEMANS Benny | C166: =VLOOKUP(A166,[2]Ledenlijst!$B$2:$N$707,13,FALSE) -> STER | D166: =VLOOKUP(A166,[2]Ledenlijst!$B$2:$N$707,7,FALSE) -> S
A167: 4282 | B167: =VLOOKUP(A167,[2]Ledenlijst!$B$2:$N$707,2,FALSE) -> COPPENS Sandro | C167: =VLOOKUP(A167,[2]Ledenlijst!$B$2:$N$707,13,FALSE) -> STER | D167: =VLOOKUP(A167,[2]Ledenlijst!$B$2:$N$707,7,FALSE) -> S
A168: 9063 | B168: =VLOOKUP(A168,[2]Ledenlijst!$B$2:$N$707,2,FALSE) -> DE BECK Clery | C168: =VLOOKUP(A168,[2]Ledenlijst!$B$2:$N$707,13,FALSE) -> STER | D168: =VLOOKUP(A168,[2]Ledenlijst!$B$2:$N$707,7,FALSE) -> S
A169: 7804 | B169: =VLOOKUP(A169,[2]Ledenlijst!$B$2:$N$707,2,FALSE) -> DE BREMAEKER Eric | C169: =VLOOKUP(A169,[2]Ledenlijst!$B$2:$N$707,13,FALSE) -> STER | D169: =VLOOKUP(A169,[2]Ledenlijst!$B$2:$N$707,7,FALSE) -> S
A170: 00869 | B170: =VLOOKUP(A170,[2]Ledenlijst!$B$2:$N$707,2,FALSE) -> DE COSTER Luc | C170: =VLOOKUP(A170,[2]Ledenlijst!$B$2:$N$707,13,FALSE) -> STER | F170: =VLOOKUP(A170,[2]Ledenlijst!$B$2:$N$707,7,FALSE) -> K
A171: 9974 | B171: =VLOOKUP(A171,[2]Ledenlijst!$B$2:$N$707,2,FALSE) -> DE FREYN Jasper | C171: =VLOOKUP(A171,[2]Ledenlijst!$B$2:$N$707,13,FALSE) -> STER | D171: =VLOOKUP(A171,[2]Ledenlijst!$B$2:$N$707,7,FALSE) -> S
A172: 7049 | B172: =VLOOKUP(A172,[2]Ledenlijst!$B$2:$N$707,2,FALSE) -> DE TANT Freddy | C172: =VLOOKUP(A172,[2]Ledenlijst!$B$2:$N$707,13,FALSE) -> STER | D172: =VLOOKUP(A172,[2]Ledenlijst!$B$2:$N$707,7,FALSE) -> S
A173: 4344 | B173: =VLOOKUP(A173,[2]Ledenlijst!$B$2:$N$707,2,FALSE) -> DE WEVER Koen | C173: =VLOOKUP(A173,[2]Ledenlijst!$B$2:$N$707,13,FALSE) -> STER | D173: =VLOOKUP(A173,[2]Ledenlijst!$B$2:$N$707,7,FALSE) -> S
A174: 8535 | B174: =VLOOKUP(A174,[2]Ledenlijst!$B$2:$N$707,2,FALSE) -> DE WIN Guy | C174: =VLOOKUP(A174,[2]Ledenlijst!$B$2:$N$707,13,FALSE) -> STER | D174: =VLOOKUP(A174,[2]Ledenlijst!$B$2:$N$707,7,FALSE) -> S
A175: 9516 | B175: =VLOOKUP(A175,[2]Ledenlijst!$B$2:$N$707,2,FALSE) -> DUJARDIN Geoffrey | C175: =VLOOKUP(A175,[2]Ledenlijst!$B$2:$N$707,13,FALSE) -> STER | D175: =VLOOKUP(A175,[2]Ledenlijst!$B$2:$N$707,7,FALSE) -> S
A176: 9517 | B176: =VLOOKUP(A176,[2]Ledenlijst!$B$2:$N$707,2,FALSE) -> GOORDEN Willy | C176: =VLOOKUP(A176,[2]Ledenlijst!$B$2:$N$707,13,FALSE) -> STER | D176: =VLOOKUP(A176,[2]Ledenlijst!$B$2:$N$707,7,FALSE) -> S
A177: 7054 | B177: =VLOOKUP(A177,[2]Ledenlijst!$B$2:$N$707,2,FALSE) -> LOOS Leo | C177: =VLOOKUP(A177,[2]Ledenlijst!$B$2:$N$707,13,FALSE) -> STER | D177: =VLOOKUP(A177,[2]Ledenlijst!$B$2:$N$707,7,FALSE) -> S
A178: 4345 | B178: =VLOOKUP(A178,[2]Ledenlijst!$B$2:$N$707,2,FALSE) -> PARDAENS Willy | C178: =VLOOKUP(A178,[2]Ledenlijst!$B$2:$N$707,13,FALSE) -> STER | D178: =VLOOKUP(A178,[2]Ledenlijst!$B$2:$N$707,7,FALSE) -> S
A179: 6088 | B179: =VLOOKUP(A179,[2]Ledenlijst!$B$2:$N$707,2,FALSE) -> SIROYT Davy | C179: =VLOOKUP(A179,[2]Ledenlijst!$B$2:$N$707,13,FALSE) -> STER | D179: =VLOOKUP(A179,[2]Ledenlijst!$B$2:$N$707,7,FALSE) -> S
A180: 4301B | B180: =VLOOKUP(A180,[2]Ledenlijst!$B$2:$N$707,2,FALSE) -> VAN GOETHEM Glenn | C180: =VLOOKUP(A180,[2]Ledenlijst!$B$2:$N$707,13,FALSE) -> STER | D180: =VLOOKUP(A180,[2]Ledenlijst!$B$2:$N$707,7,FALSE) -> S
A181: 5198 | B181: =VLOOKUP(A181,[2]Ledenlijst!$B$2:$N$707,2,FALSE) -> VAN LAETHEM Rudi | C181: =VLOOKUP(A181,[2]Ledenlijst!$B$2:$N$707,13,FALSE) -> STER | D181: =VLOOKUP(A181,[2]Ledenlijst!$B$2:$N$707,7,FALSE) -> S
A182: 4320 | B182: =VLOOKUP(A182,[2]Ledenlijst!$B$2:$N$707,2,FALSE) -> VAN LANGENHOVE Alain | C182: =VLOOKUP(A182,[2]Ledenlijst!$B$2:$N$707,13,FALSE) -> STER | D182: =VLOOKUP(A182,[2]Ledenlijst!$B$2:$N$707,7,FALSE) -> S
A183: 9458 | B183: =VLOOKUP(A183,[2]Ledenlijst!$B$2:$N$707,2,FALSE) -> VANDECAN Florian | C183: =VLOOKUP(A183,[2]Ledenlijst!$B$2:$N$707,13,FALSE) -> STER | E183: =VLOOKUP(A183,[2]Ledenlijst!$B$2:$N$707,7,FALSE) -> J
A184: 2338 | B184: =VLOOKUP(A184,[2]Ledenlijst!$B$2:$N$707,2,FALSE) -> VANDECAN Thierry | C184: =VLOOKUP(A184,[2]Ledenlijst!$B$2:$N$707,13,FALSE) -> STER | D184: =VLOOKUP(A184,[2]Ledenlijst!$B$2:$N$707,7,FALSE) -> S
A185: 4348 | B185: =VLOOKUP(A185,[2]Ledenlijst!$B$2:$N$707,2,FALSE) -> VAN MUYLEM Norbert | C185: =VLOOKUP(A185,[2]Ledenlijst!$B$2:$N$707,13,FALSE) -> STER | D185: =VLOOKUP(A185,[2]Ledenlijst!$B$2:$N$707,7,FALSE) -> S
A186: 8017 | B186: =VLOOKUP(A186,[2]Ledenlijst!$B$2:$N$707,2,FALSE) -> VAN RIET Kris | C186: =VLOOKUP(A186,[2]Ledenlijst!$B$2:$N$707,13,FALSE) -> STER | D186: =VLOOKUP(A186,[2]Ledenlijst!$B$2:$N$707,7,FALSE) -> S
A187: 6454 | B187: =VLOOKUP(A187,[2]Ledenlijst!$B$2:$N$707,2,FALSE) -> VERCAMMEN Alwin | C187: =VLOOKUP(A187,[2]Ledenlijst!$B$2:$N$707,13,FALSE) -> STER | D187: =VLOOKUP(A187,[2]Ledenlijst!$B$2:$N$707,7,FALSE) -> S
A188: 4352 | B188: =VLOOKUP(A188,[2]Ledenlijst!$B$2:$N$707,2,FALSE) -> WAUTERS Johnny | C188: =VLOOKUP(A188,[2]Ledenlijst!$B$2:$N$707,13,FALSE) -> STER | D188: =VLOOKUP(A188,[2]Ledenlijst!$B$2:$N$707,7,FALSE) -> S | G188: =COUNTA(A166:A188) -> 23 | I188: STER
A189: 9283 | B189: =VLOOKUP(A189,[2]Ledenlijst!$B$2:$N$707,2,FALSE) -> BRENDERS Thierry | C189: =VLOOKUP(A189,[2]Ledenlijst!$B$2:$N$707,13,FALSE) -> K.OH | D189: =VLOOKUP(A189,[2]Ledenlijst!$B$2:$N$707,7,FALSE) -> S
A190: 4354 | B190: =VLOOKUP(A190,[2]Ledenlijst!$B$2:$N$707,2,FALSE) -> CAPIAU Lucien | C190: =VLOOKUP(A190,[2]Ledenlijst!$B$2:$N$707,13,FALSE) -> K.OH | D190: =VLOOKUP(A190,[2]Ledenlijst!$B$2:$N$707,7,FALSE) -> S
A191: 00652 | B191: =VLOOKUP(A191,[2]Ledenlijst!$B$2:$N$707,2,FALSE) -> DE BOU Pol | C191: =VLOOKUP(A191,[2]Ledenlijst!$B$2:$N$707,13,FALSE) -> K.OH | F191: =VLOOKUP(A191,[2]Ledenlijst!$B$2:$N$707,7,FALSE) -> K
A192: 9055 | B192: =VLOOKUP(A192,[2]Ledenlijst!$B$2:$N$707,2,FALSE) -> DE HERTOG Gert-Jan | C192: =VLOOKUP(A192,[2]Ledenlijst!$B$2:$N$707,13,FALSE) -> K.OH | D192: =VLOOKUP(A192,[2]Ledenlijst!$B$2:$N$707,7,FALSE) -> S
A193: 4305 | B193: =VLOOKUP(A193,[2]Ledenlijst!$B$2:$N$707,2,FALSE) -> DE HERTOG Ives | C193: =VLOOKUP(A193,[2]Ledenlijst!$B$2:$N$707,13,FALSE) -> K.OH | D193: =VLOOKUP(A193,[2]Ledenlijst!$B$2:$N$707,7,FALSE) -> S
A194: 9518 | B194: =VLOOKUP(A194,[2]Ledenlijst!$B$2:$N$707,2,FALSE) -> DE MECHELEER Michel | C194: =VLOOKUP(A194,[2]Ledenlijst!$B$2:$N$707,13,FALSE) -> K.OH | D194: =VLOOKUP(A194,[2]Ledenlijst!$B$2:$N$707,7,FALSE) -> S
A195: 4378 | B195: =VLOOKUP(A195,[2]Ledenlijst!$B$2:$N$707,2,FALSE) -> DERUYVER Stefaan | C195: =VLOOKUP(A195,[2]Ledenlijst!$B$2:$N$707,13,FALSE) -> K.OH | D195: =VLOOKUP(A195,[2]Ledenlijst!$B$2:$N$707,7,FALSE) -> S
A196: 9064 | B196: =VLOOKUP(A196,[2]Ledenlijst!$B$2:$N$707,2,FALSE) -> GERSOULLE Marc | C196: =VLOOKUP(A196,[2]Ledenlijst!$B$2:$N$707,13,FALSE) -> K.OH | D196: =VLOOKUP(A196,[2]Ledenlijst!$B$2:$N$707,7,FALSE) -> S
A197: 4290 | B197: =VLOOKUP(A197,[2]Ledenlijst!$B$2:$N$707,2,FALSE) -> GILLADE Luc | C197: =VLOOKUP(A197,[2]Ledenlijst!$B$2:$N$707,13,FALSE) -> K.OH | D197: =VLOOKUP(A197,[2]Ledenlijst!$B$2:$N$707,7,FALSE) -> S
A198: 4361 | B198: =VLOOKUP(A198,[2]Ledenlijst!$B$2:$N$707,2,FALSE) -> MANGELINCKX Nico | C198: =VLOOKUP(A198,[2]Ledenlijst!$B$2:$N$707,13,FALSE) -> K.OH | D198: =VLOOKUP(A198,[2]Ledenlijst!$B$2:$N$707,7,FALSE) -> S
A199: 8093 | B199: =VLOOKUP(A199,[2]Ledenlijst!$B$2:$N$707,2,FALSE) -> MATTHYS Karolien | C199: =VLOOKUP(A199,[2]Ledenlijst!$B$2:$N$707,13,FALSE) -> K.OH | D199: =VLOOKUP(A199,[2]Ledenlijst!$B$2:$N$707,7,FALSE) -> S
A200: 2061 | B200: =VLOOKUP(A200,[2]Ledenlijst!$B$2:$N$707,2,FALSE) -> MERTENS Eddy | C200: =VLOOKUP(A200,[2]Ledenlijst!$B$2:$N$707,13,FALSE) -> K.OH | D200: =VLOOKUP(A200,[2]Ledenlijst!$B$2:$N$707,7,FALSE) -> S
A201: 4387 | B201: =VLOOKUP(A201,[2]Ledenlijst!$B$2:$N$707,2,FALSE) -> TEMMERMAN Walter | C201: =VLOOKUP(A201,[2]Ledenlijst!$B$2:$N$707,13,FALSE) -> K.OH | D201: =VLOOKUP(A201,[2]Ledenlijst!$B$2:$N$707,7,FALSE) -> S
A202: 8871 | B202: =VLOOKUP(A202,[2]Ledenlijst!$B$2:$N$707,2,FALSE) -> VANDENHENDE John | C202: =VLOOKUP(A202,[2]Ledenlijst!$B$2:$N$707,13,FALSE) -> K.OH | D202: =VLOOKUP(A202,[2]Ledenlijst!$B$2:$N$707,7,FALSE) -> S
A203: 8066 | B203: =VLOOKUP(A203,[2]Ledenlijst!$B$2:$N$707,2,FALSE) -> VANDERHAUWAERT Christian | C203: =VLOOKUP(A203,[2]Ledenlijst!$B$2:$N$707,13,FALSE) -> K.OH | D203: =VLOOKUP(A203,[2]Ledenlijst!$B$2:$N$707,7,FALSE) -> S
A204: 8662 | B204: =VLOOKUP(A204,[2]Ledenlijst!$B$2:$N$707,2,FALSE) -> VAN DER LINDEN Eric | C204: =VLOOKUP(A204,[2]Ledenlijst!$B$2:$N$707,13,FALSE) -> K.OH | D204: =VLOOKUP(A204,[2]Ledenlijst!$B$2:$N$707,7,FALSE) -> S
... 514 more rows
